bitfinex/quotes_SOLUSD_20240621
["timestamp","ask_amount","ask_price","bid_price","bid_amount"]
[1718999351707,2.49765865,133.23,133.19,6.0063]
[1718999352013,2.49765865,133.23,133.18,1.0346059]
[1718999352320,2.49765865,133.23,133.18,0.8646059]
[1718999352488,2.49765865,133.23,133.18,6.8712059]
[1718999352691,2.49765865,133.23,133.19,6.0064]
[1718999356302,2.49765865,133.23,133.18,6.8713059]
[1718999356808,2.49765865,133.23,133.2,6.0059]
[1718999357114,2.49765865,133.23,133.19,6.0063]
[1718999357503,2.49765865,133.23,133.18,0.8646059]
[1718999358314,2.49765865,133.23,133.18,6.8714059]
[1718999358619,2.49765865,133.23,133.19,6.0063]
[1718999359218,2.49765865,133.23,133.18,6.8713059]
[1718999360016,2.49765865,133.23,133.18,0.8646059]
[1718999361292,2.49765865,133.23,133.19,0.34]
[1718999361498,2.49765865,133.23,133.22,6.0051]
[1718999361698,2.49765865,133.23,133.22,0.17]
[1718999361917,2.49765865,133.23,133.19,0.34]
[1718999362299,2.49765865,133.23,133.19,6.3462]
[1718999362500,2.49765865,133.23,133.19,0.34]
[1718999362924,2.49765865,133.23,133.19,6.3463]
[1718999363126,2.49765865,133.23,133.18,0.8646059]
[1718999363796,2.49765865,133.23,133.18,6.8714059]
[1718999364412,2.49765865,133.23,133.18,6.8713059]
[1718999365902,2.49765865,133.23,133.19,6.0063]
[1718999366131,2.49765865,133.23,133.2,6.0059]
[1718999366433,2.49765865,133.23,133.19,6.0063]
[1718999366801,2.49765865,133.23,133.2,6.0058]
[1718999367002,2.49765865,133.23,133.19,6.0062]
[1718999367425,2.49765865,133.23,133.18,6.8714059]
[1718999368431,2.49765865,133.23,133.21,6.0054]
[1718999368730,2.49765865,133.23,133.22,6.0051]
[1718999369103,2.49765865,133.23,133.22,6.3451]
[1718999369703,2.49765865,133.23,133.22,34.7151]
[1718999370329,22.8222,133.31,133.25,6.0035]
[1718999370704,22.8222,133.31,133.26,6.0032]
[1718999371636,6.0565,133.34,133.28,6.0023]
[1718999372338,6.0565,133.34,133.29,6.0019]
[1718999372532,6.0565,133.34,133.28,6.0022]
[1718999373226,6.0565,133.34,133.29,6.0017]
[1718999373430,6.0565,133.34,133.27,15.3468]
[1718999373628,6.0565,133.34,133.31,6.0009]
[1718999374422,6.0565,133.34,133.27,0.17]
[1718999375035,6.0565,133.34,133.28,6.002]
[1718999375235,6.0565,133.34,133.27,6.1727]
[1718999375430,6.0565,133.34,133.28,6.0023]
[1718999375739,6.0565,133.34,133.26,0.17]
[1718999375740,6.0565,133.34,133.25,6.0036]
[1718999375944,0.17,133.33,133.21,28.37]
[1718999376146,15.3991,133.32,133.22,6.0047]
[1718999376354,26.803,133.31,133.2,6.0057]
[1718999377329,55.173,133.31,133.2,6.0057]
[1718999377528,55.173,133.31,133.18,29.2346059]
[1718999377529,15.262,133.3,133.18,29.2346059]
[1718999377725,62.75965865,133.3,133.19,6.0061]
[1718999377949,6.5508,133.29,133.19,6.0061]
[1718999378139,6.5508,133.29,133.18,6.8713059]
[1718999378940,6.5508,133.29,133.21,6.0053]
[1718999379262,6.5508,133.29,133.2,6.0058]
[1718999379939,6.5508,133.29,133.19,6.0063]
[1718999380145,20.0,133.28,133.18,0.8646059]
[1718999380448,21.6775,133.27,133.18,0.8646059]
[1718999380751,45.0,133.26,133.18,0.8646059]
[1718999381053,24.00515865,133.27,133.18,0.8646059]
[1718999381229,0.17,133.26,133.19,6.006]
[1718999381430,24.00515865,133.27,133.19,6.006]
[1718999381631,24.00515865,133.27,133.2,6.0059]
[1718999382430,21.5075,133.27,133.2,6.0059]
[1718999382749,21.5075,133.27,133.18,0.8646059]
[1718999382750,21.5075,133.27,133.19,15.0159]
[1718999382932,21.5075,133.27,133.2,0.34]
[1718999383138,21.5075,133.27,133.23,6.0042]
[1718999383460,21.5075,133.27,133.18,0.8646059]
[1718999383951,21.5075,133.27,133.2,6.0057]
[1718999384150,21.5075,133.27,133.2,6.0059]
[1718999385253,21.5075,133.27,133.18,0.8646059]
[1718999385728,21.5075,133.27,133.2,6.0058]
[1718999386963,21.5075,133.27,133.18,0.8646059]
[1718999387166,21.5075,133.27,133.19,15.3553]
[1718999387338,21.5075,133.27,133.23,6.0045]
[1718999387752,21.5075,133.27,133.22,6.0049]
[1718999387953,21.5075,133.27,133.19,15.3553]
[1718999388154,21.5075,133.27,133.19,0.34]
[1718999388360,21.5075,133.27,133.22,6.0048]
[1718999388756,6.4712,133.27,133.23,6.0043]
[1718999390339,6.4712,133.27,133.21,0.17]
[1718999390655,6.4712,133.27,133.24,6.0041]
[1718999391068,15.8224,133.3,133.25,6.0036]
[1718999391069,22.3811,133.3,133.25,6.0036]
[1718999391434,22.3811,133.3,133.23,15.3512]
[1718999392152,15.8224,133.33,133.27,6.0025]
[1718999392464,15.8224,133.33,133.28,6.0023]
[1718999392667,6.5587,133.34,133.3,6.0013]
[1718999393342,15.8224,133.36,133.31,6.0009]
[1718999394060,15.8224,133.36,133.3,6.0013]
[1718999394258,15.8224,133.36,133.31,6.0009]
[1718999395055,15.8224,133.36,133.3,6.0013]
[1718999395260,15.8224,133.36,133.31,0.17]
[1718999395848,15.8224,133.36,133.33,5.9998]
[1718999396067,6.5587,133.37,133.33,5.9999]
[1718999396265,23.0064,133.4,133.34,0.34]
[1718999396442,23.0064,133.4,133.34,6.3396]
[1718999397264,23.0064,133.4,133.34,0.34]
[1718999397671,23.0064,133.4,133.34,6.3395]
[1718999397850,23.0064,133.4,133.34,0.34]
[1718999398166,23.0064,133.4,133.34,6.3395]
[1718999399370,23.0064,133.4,133.34,0.34]
[1718999399679,23.0064,133.4,133.34,6.3395]
[1718999400246,23.0064,133.4,133.33,5.9997]
[1718999400553,15.2985,133.43,133.41,5.9965]
[1718999400754,15.2985,133.43,133.39,5.9974]
[1718999401064,15.2985,133.43,133.34,15.1683]
[1718999401267,15.2985,133.43,133.37,5.9982]
[1718999401646,15.2985,133.43,133.36,6.1686]
[1718999401945,43.6785,133.43,133.29,16.0126]
[1718999402149,26.5835,133.42,133.28,34.4764]
[1718999402347,44.81645342,133.42,133.31,6.0006]
[1718999402566,44.81645342,133.42,133.28,49.4823]
[1718999402748,44.81645342,133.42,133.32,6.0003]
[1718999402953,44.81645342,133.42,133.28,34.4764]
[1718999403271,44.81645342,133.42,133.31,28.38]
[1718999403474,26.5835,133.42,133.32,6.0004]
[1718999403673,6.5835,133.42,133.3,15.0034]
[1718999403977,6.5835,133.42,133.34,5.9993]
[1718999404482,6.5835,133.42,133.29,28.38]
[1718999404649,6.5937,133.4,133.26,16.0126]
[1718999404855,6.5937,133.4,133.32,6.0003]
[1718999405049,6.5937,133.4,133.33,5.9998]
[1718999405355,6.5937,133.4,133.32,6.0004]
[1718999405761,6.5937,133.4,133.28,15.0058]
[1718999405965,6.5937,133.4,133.3,6.0014]
[1718999406272,15.9985,133.39,133.27,28.38]
[1718999406471,16.1685,133.39,133.27,28.38]
[1718999407065,16.1685,133.39,133.3,6.0013]
[1718999407966,16.1685,133.39,133.31,6.0009]
[1718999408373,15.9985,133.39,133.34,5.9995]
[1718999408678,15.9985,133.39,133.32,6.0004]
[1718999409055,15.9985,133.39,133.31,6.0008]
[1718999409480,15.9985,133.39,133.29,6.0018]
[1718999409782,15.2901,133.37,133.28,6.0021]
[1718999410456,15.2901,133.37,133.3,6.001]
[1718999410658,15.2901,133.37,133.26,15.0073]
[1718999410858,15.2901,133.37,133.28,6.0022]
[1718999411482,15.2901,133.37,133.29,6.0018]
[1718999411779,15.2901,133.37,133.27,0.34]
[1718999411971,15.2901,133.37,133.27,6.0025]
[1718999412380,15.2901,133.37,133.28,6.0023]
[1718999412689,15.5397,133.35,133.22,15.0125]
[1718999412888,15.5397,133.35,133.26,6.0031]
[1718999413053,0.17,133.34,133.26,6.0031]
[1718999413259,0.17,133.34,133.25,6.0035]
[1718999413680,0.17,133.34,133.25,6.0036]
[1718999414386,33.76156315,133.35,133.25,28.38]
[1718999414687,15.5397,133.35,133.28,6.0021]
[1718999414889,15.5397,133.35,133.25,28.38]
[1718999415384,15.5397,133.35,133.26,6.1731]
[1718999415684,15.5397,133.35,133.26,6.0031]
[1718999415856,15.5397,133.35,133.25,6.0036]
[1718999416056,0.17,133.34,133.25,6.0036]
[1718999416365,0.17,133.34,133.18,0.8646059]
[1718999416366,6.311,133.31,133.18,0.8646059]
[1718999416565,6.311,133.31,133.18,29.2446059]
[1718999416763,20.17,133.3,133.18,29.2446059]
[1718999416962,20.17,133.3,133.2,6.0059]
[1718999417164,20.17,133.3,133.18,44.2608059]
[1718999417360,20.17,133.3,133.22,6.0047]
[1718999417681,20.17,133.3,133.18,15.8808059]
[1718999417868,20.17,133.3,133.19,0.34]
[1718999418279,20.17,133.3,133.19,0.17]
[1718999418576,6.5156,133.28,133.18,0.8646059]
[1718999418777,15.5085,133.27,133.18,0.8646059]
[1718999418980,20.0,133.26,133.18,0.8646059]
[1718999419487,0.17,133.25,133.18,0.8646059]
[1718999420481,20.0,133.26,133.19,6.0063]
[1718999420688,15.5085,133.27,133.18,0.8646059]
[1718999420889,15.5085,133.27,133.19,6.0062]
[1718999421196,15.5085,133.27,133.21,6.0053]
[1718999421365,15.5085,133.27,133.2,6.0057]
[1718999421787,15.5085,133.27,133.18,0.8646059]
[1718999422282,15.5085,133.27,133.18,6.8714059]
[1718999422669,15.5085,133.27,133.19,6.0063]
[1718999423281,15.5085,133.27,133.21,6.0054]
[1718999423590,15.5085,133.27,133.19,6.0064]
[1718999423805,15.5085,133.27,133.2,6.0059]
[1718999424162,15.5085,133.27,133.19,6.0062]
[1718999424479,15.5085,133.27,133.18,6.8714059]
[1718999425075,20.0,133.26,133.18,0.8646059]
[1718999425386,6.3368,133.25,133.18,0.8646059]
[1718999425989,6.3368,133.25,133.21,6.0051]
[1718999426163,6.3368,133.25,133.22,6.005]
[1718999426566,15.5085,133.27,133.25,6.0037]
[1718999426765,6.0932,133.29,133.28,6.0024]
[1718999427071,16.3873,133.31,133.26,6.0029]
[1718999427671,16.3873,133.31,133.25,6.0035]
[1718999427872,16.3873,133.31,133.26,6.0032]
[1718999428076,16.3873,133.31,133.24,6.1741]
[1718999428398,16.3873,133.31,133.23,6.0042]
[1718999428771,16.3873,133.31,133.24,6.0041]
[1718999430766,16.3873,133.31,133.22,0.17]
[1718999430969,16.3873,133.31,133.18,0.8646059]
[1718999431297,21.3224,133.29,133.18,0.8646059]
[1718999431476,20.0,133.28,133.18,6.8714059]
[1718999431877,0.17,133.27,133.18,6.8714059]
[1718999432084,0.17,133.27,133.18,0.8646059]
[1718999432263,22.1892,133.26,133.18,0.8646059]
[1718999432785,0.17,133.25,133.18,0.8646059]
[1718999433366,20.17,133.25,133.18,0.8646059]
[1718999433568,20.17,133.25,133.18,6.8714059]
[1718999433767,20.0,133.25,133.18,6.8714059]
[1718999433995,20.0,133.25,133.18,0.8646059]
[1718999435897,6.0034,133.23,133.18,0.8646059]
[1718999436099,36.5978,133.22,133.18,0.8646059]
[1718999436894,16.5978,133.22,133.18,0.8646059]
[1718999439075,0.17,133.21,133.18,0.8646059]
[1718999439372,16.5978,133.22,133.18,0.8646059]
[1718999440002,0.17,133.21,133.18,0.8646059]
[1718999442307,16.5978,133.22,133.18,0.8646059]
[1718999445089,0.17,133.21,133.18,0.8646059]
[1718999445298,0.17,133.21,133.07,6.0118]
[1718999445299,6.4587,133.19,133.07,6.0118]
[1718999445491,22.7773,133.19,133.05,15.025]
[1718999445803,6.4587,133.17,133.05,21.0376]
[1718999445992,45.0,133.16,133.06,6.0122]
[1718999446298,20.17,133.15,133.06,6.0122]
[1718999446501,20.17,133.15,133.07,6.0118]
[1718999446800,15.9628,133.14,133.07,6.0118]
[1718999447000,15.9628,133.14,133.04,16.2505059]
[1718999447204,15.9628,133.14,133.09,6.0106]
[1718999447393,15.9628,133.14,133.09,6.0109]
[1718999447697,6.4587,133.17,133.04,16.2505059]
[1718999448009,6.4587,133.17,133.12,6.0095]
[1718999448182,6.4587,133.17,133.11,6.0099]
[1718999448499,6.4587,133.17,133.09,15.0272]
[1718999448500,6.4587,133.17,133.12,6.0095]
[1718999448880,6.4587,133.17,133.11,6.0098]
[1718999449100,6.4587,133.17,133.12,6.0092]
[1718999449307,6.4587,133.17,133.11,6.0099]
[1718999449602,6.4587,133.17,133.05,33.36]
[1718999449903,6.4587,133.17,133.07,6.0117]
[1718999450099,6.4587,133.17,133.04,31.2825059]
[1718999450272,20.17,133.16,133.08,6.0113]
[1718999450473,20.17,133.16,133.04,31.2825059]
[1718999450474,20.17,133.16,133.04,6.8774059]
[1718999450677,15.351,133.14,133.05,6.0126]
[1718999450899,15.351,133.14,133.06,6.0121]
[1718999451098,0.17,133.13,133.06,6.0121]
[1718999451302,0.17,133.13,133.05,6.0126]
[1718999451599,6.5205,133.12,133.05,6.0126]
[1718999451793,6.5205,133.12,133.06,6.0123]
[1718999452193,6.5205,133.12,133.05,6.0126]
[1718999452389,0.17,133.11,133.04,6.8775059]
[1718999452792,6.5205,133.12,133.04,0.8646059]
[1718999453586,6.5205,133.12,133.06,6.0121]
[1718999453788,6.5205,133.12,133.04,0.8646059]
[1718999453991,6.5205,133.12,133.06,6.0123]
[1718999454196,6.453,133.16,133.13,6.0089]
[1718999454406,6.453,133.16,133.15,6.0082]
[1718999454592,15.6505,133.17,133.12,15.023]
[1718999454794,6.453,133.19,133.14,15.0214]
[1718999455008,6.453,133.19,133.15,6.008]
[1718999455215,6.453,133.19,133.14,6.0085]
[1718999455387,6.453,133.19,133.12,15.0238]
[1718999455388,6.453,133.19,133.15,6.0081]
[1718999455586,6.453,133.19,133.16,6.0076]
[1718999455822,260.4,133.2,133.14,15.0207]
[1718999456306,260.4,133.2,133.16,6.0075]
[1718999457595,260.4,133.2,133.14,6.0085]
[1718999458152,260.4,133.2,133.13,0.17]
[1718999458327,260.4,133.2,133.13,0.34]
[1718999458491,260.4,133.2,133.16,6.0077]
[1718999459409,260.4,133.2,133.13,0.17]
[1718999459584,260.4,133.2,133.15,6.0079]
[1718999460004,260.4,133.2,133.1,15.0262]
[1718999460195,260.4,133.2,133.13,6.0088]
[1718999460381,260.4,133.2,133.1,30.0509]
[1718999460598,260.4,133.2,133.17,6.007]
[1718999461103,260.4,133.2,133.13,15.0218]
[1718999461417,260.4,133.2,133.14,6.0085]
[1718999461596,6.1818,133.18,133.1,6.0102]
[1718999461794,6.1818,133.18,133.08,16.463]
[1718999461795,6.1818,133.18,133.08,31.4914]
[1718999462018,6.1818,133.18,133.1,6.0102]
[1718999462228,6.1818,133.18,133.08,16.463]
[1718999462399,6.1818,133.18,133.1,6.0104]
[1718999462601,6.1818,133.18,133.05,52.4726]
[1718999462803,15.559,133.17,133.08,6.0114]
[1718999463043,15.559,133.17,133.04,0.8646059]
[1718999463350,20.0,133.16,133.08,6.0114]
[1718999463723,0.17,133.15,133.08,6.0114]
[1718999464226,0.17,133.15,133.07,6.0117]
[1718999464414,0.17,133.15,133.08,6.0113]
[1718999464816,0.17,133.15,133.09,6.0108]
[1718999465339,15.389,133.17,133.07,15.0296]
[1718999465510,15.389,133.17,133.11,6.0098]
[1718999466515,15.389,133.17,133.09,6.0108]
[1718999466712,15.389,133.17,133.09,15.0273]
[1718999466919,15.389,133.17,133.1,0.17]
[1718999467131,15.389,133.17,133.12,6.0095]
[1718999467632,15.389,133.17,133.13,6.009]
[1718999468022,15.389,133.17,133.12,6.0094]
[1718999468206,15.389,133.17,133.11,6.0097]
[1718999468407,15.389,133.17,133.1,6.1804]
[1718999468602,15.389,133.17,133.11,6.01]
[1718999469011,15.389,133.17,133.12,6.0096]
[1718999469335,15.389,133.17,133.09,15.0272]
[1718999469634,15.8293,133.24,133.2,6.0058]
[1718999469844,15.8293,133.24,133.13,16.1689]
[1718999470018,0.88327653,133.25,133.14,20.34]
[1718999470215,0.88327653,133.25,133.19,6.0062]
[1718999470914,0.88327653,133.25,133.19,15.0158]
[1718999471238,0.88327653,133.25,133.2,0.34]
[1718999471423,0.88327653,133.25,133.24,6.0042]
[1718999471925,0.88327653,133.25,133.2,0.34]
[1718999472137,0.88327653,133.25,133.18,6.0065]
[1718999472433,6.2552,133.29,133.19,6.1761]
[1718999472613,6.2552,133.29,133.19,6.0061]
[1718999473337,0.17,133.28,133.19,6.0061]
[1718999473540,0.17,133.28,133.2,6.0058]
[1718999473713,20.17,133.28,133.2,6.0058]
[1718999474440,20.17,133.28,133.19,6.0063]
[1718999474615,20.17,133.28,133.17,15.1883]
[1718999474815,20.0,133.28,133.18,0.17]
[1718999475019,20.0,133.28,133.19,15.016]
[1718999475219,6.2552,133.29,133.25,6.0035]
[1718999475448,6.2552,133.29,133.21,15.0128]
[1718999475746,6.2552,133.29,133.23,6.0046]
[1718999475913,6.2552,133.29,133.18,30.0325]
[1718999475914,6.2552,133.29,133.18,15.0161]
[1718999476115,6.2552,133.29,133.2,6.0057]
[1718999476316,6.2552,133.29,133.2,6.0059]
[1718999476739,6.2552,133.29,133.21,6.0054]
[1718999476933,0.17,133.28,133.21,6.0054]
[1718999477247,6.2552,133.29,133.2,6.0059]
[1718999477438,20.17,133.28,133.2,6.0059]
[1718999477624,20.17,133.28,133.19,6.0063]
[1718999477938,20.17,133.28,133.2,6.0058]
[1718999478117,20.0,133.28,133.21,6.0054]
[1718999478318,20.0,133.28,133.2,6.0059]
[1718999478938,20.0,133.28,133.19,6.0062]
[1718999480150,6.0873,133.26,133.12,46.6478]
[1718999480441,6.0873,133.26,133.2,6.0057]
[1718999480678,6.0873,133.26,133.15,130.0399]
[1718999480946,6.6083,133.29,133.26,6.003]
[1718999481111,6.6083,133.29,133.18,30.7672]
[1718999481435,6.6083,133.29,133.19,6.0062]
[1718999481645,6.6083,133.29,133.2,6.0058]
[1718999481821,6.6083,133.29,133.17,15.0173]
[1718999482019,6.6083,133.29,133.21,6.0051]
[1718999482342,0.17,133.28,133.21,6.0051]
[1718999482524,0.17,133.28,133.19,6.006]
[1718999482724,20.17,133.28,133.2,6.0058]
[1718999484041,20.17,133.28,133.17,6.0073]
[1718999484042,23.0029,133.27,133.17,6.0073]
[1718999484343,20.0,133.26,133.19,6.0063]
[1718999484540,20.0,133.26,133.14,33.19]
[1718999484743,20.0,133.26,133.14,48.2116]
[1718999485045,20.0,133.26,133.16,6.0075]
[1718999485225,0.17,133.25,133.17,6.0072]
[1718999485739,20.0,133.26,133.11,61.671]
[1718999486052,20.0,133.26,133.2,15.0139]
[1718999486256,23.0029,133.27,133.23,6.0045]
[1718999486419,23.0029,133.27,133.22,6.0049]
[1718999486746,23.0029,133.27,133.19,6.0062]
[1718999486918,23.0029,133.27,133.16,33.19]
[1718999487117,23.0029,133.27,133.18,6.0066]
[1718999487616,23.0029,133.27,133.15,0.17]
[1718999487850,23.0029,133.27,133.2,15.0146]
[1718999488023,23.0029,133.27,133.15,20.17]
[1718999488349,23.0029,133.27,133.2,6.0058]
[1718999488852,23.0029,133.27,133.21,6.0055]
[1718999489348,23.0029,133.27,133.2,6.0058]
[1718999489645,23.0029,133.27,133.19,6.0064]
[1718999490146,23.0029,133.27,133.18,6.0067]
[1718999490450,23.0029,133.27,133.19,6.0063]
[1718999491446,23.0029,133.27,133.2,6.0059]
[1718999491651,23.0029,133.27,133.19,0.17]
[1718999491952,23.0029,133.27,133.23,6.0045]
[1718999492155,23.0029,133.27,133.19,0.17]
[1718999492325,23.0029,133.27,133.2,6.0057]
[1718999492830,23.0029,133.27,133.21,6.0055]
[1718999493243,23.0029,133.27,133.2,6.0058]
[1718999493646,23.0029,133.27,133.19,6.0063]
[1718999493953,20.0,133.26,133.13,22.5724]
[1718999494160,0.17,133.25,133.17,6.007]
[1718999494329,0.17,133.25,133.18,6.0069]
[1718999495257,15.6476,133.23,133.11,60.0916]
[1718999495562,20.0,133.22,133.14,6.0086]
[1718999496150,20.0,133.22,133.15,6.0081]
[1718999496360,20.0,133.22,133.14,6.0085]
[1718999496532,20.0,133.22,133.13,6.009]
[1718999496844,6.8168,133.21,133.12,6.0095]
[1718999497165,35.3458,133.2,133.1,6.0104]
[1718999497366,71.8168,133.19,133.08,6.0113]
[1718999497661,71.8168,133.19,133.09,6.0109]
[1718999498034,15.4526,133.18,133.09,6.0109]
[1718999498359,20.17,133.17,133.09,6.0109]
[1718999498561,6.2808,133.16,133.09,6.0109]
[1718999498744,20.0,133.15,133.08,6.0112]
[1718999500141,20.0,133.15,133.06,15.0306]
[1718999500347,20.0,133.15,133.07,15.0286]
[1718999500546,20.0,133.15,133.09,6.0109]
[1718999500763,20.0,133.15,133.04,30.9293059]
[1718999500764,6.2808,133.16,133.12,6.0095]
[1718999500973,6.2808,133.16,133.04,30.9293059]
[1718999500974,6.2808,133.16,133.08,0.17]
[1718999501281,6.2808,133.16,133.14,6.0086]
[1718999501437,752.53789905,133.3,133.17,6.0073]
[1718999501438,6.4634,133.2,133.17,6.0073]
[1718999501636,6.4634,133.2,133.15,6.0079]
[1718999501831,6.4634,133.2,133.14,6.0086]
[1718999502059,6.4634,133.2,133.18,6.0065]
[1718999502767,6.4634,133.24,133.15,15.0206]
[1718999502945,6.4634,133.24,133.16,0.17]
[1718999503264,6.4634,133.24,133.14,20.0]
[1718999503570,6.4634,133.24,133.17,6.007]
[1718999504462,6.4634,133.24,133.13,0.17]
[1718999504641,6.4634,133.24,133.13,0.34]
[1718999504837,0.17,133.23,133.16,6.0075]
[1718999505052,0.17,133.23,133.17,6.0071]
[1718999505259,0.17,133.23,133.16,6.0076]
[1718999505437,0.17,133.23,133.13,0.17]
[1718999505645,20.17,133.23,133.13,6.009]
[1718999506060,22.66765865,133.23,133.13,6.009]
[1718999506642,22.66765865,133.23,133.14,6.0085]
[1718999507749,22.66765865,133.23,133.15,6.0082]
[1718999508454,22.66765865,133.23,133.14,15.0217]
[1718999508970,22.66765865,133.23,133.16,6.0075]
[1718999509338,22.66765865,133.23,133.13,0.17]
[1718999509551,22.66765865,133.23,133.12,15.024]
[1718999509767,22.66765865,133.23,133.15,6.0082]
[1718999512450,22.66765865,133.23,133.14,6.0085]
[1718999513475,22.66765865,133.23,133.09,45.0803]
[1718999513772,67.8717,133.22,133.12,6.0092]
[1718999513944,20.0,133.21,133.12,6.0092]
[1718999514146,0.17,133.2,133.13,6.0091]
[1718999515281,45.17,133.2,133.12,6.0094]
[1718999516847,16.449,133.18,133.11,6.0099]
[1718999517047,20.0,133.17,133.11,6.0099]
[1718999517260,20.0,133.17,133.04,0.8646059]
[1718999517458,20.0,133.17,133.1,6.0104]
[1718999517655,0.17,133.16,133.1,6.0104]
[1718999520177,0.17,133.16,133.11,6.01]
[1718999521056,0.17,133.16,133.1,6.0103]
[1718999521261,20.0,133.17,133.09,15.0265]
[1718999521473,20.0,133.17,133.13,6.0089]
[1718999521672,16.449,133.18,133.16,6.0076]
[1718999521858,6.4297,133.19,133.16,6.0075]
[1718999522060,6.4297,133.19,133.17,6.0071]
[1718999522258,16.5394,133.21,133.18,6.0069]
[1718999522782,16.5394,133.21,133.12,30.0471]
[1718999522783,6.2642,133.22,133.2,6.0059]
[1718999522961,16.3868,133.25,133.21,6.0054]
[1718999523164,16.3868,133.25,133.17,15.1874]
[1718999523165,16.3868,133.25,133.13,33.19]
[1718999523483,16.3868,133.25,133.18,6.0066]
[1718999523979,16.3868,133.25,133.16,6.0078]
[1718999524554,18.88445865,133.25,133.16,6.0078]
[1718999524983,18.88445865,133.25,133.1,16.1549]
[1718999525178,20.17,133.24,133.16,6.0077]
[1718999526284,45.0,133.23,133.11,0.17]
[1718999526778,20.17,133.22,133.14,6.0085]
[1718999526965,20.17,133.22,133.15,6.0082]
[1718999527360,20.17,133.22,133.14,6.0085]
[1718999528287,20.17,133.22,133.15,6.0082]
[1718999528662,20.17,133.22,133.14,6.0086]
[1718999530083,20.17,133.22,133.12,15.023]
[1718999530299,0.17,133.22,133.13,0.17]
[1718999530465,20.0,133.24,133.16,6.0075]
[1718999530779,18.19617902,133.24,133.13,0.17]
[1718999530992,34.58297902,133.25,133.2,6.0057]
[1718999531161,34.58297902,133.25,133.19,6.0063]
[1718999531356,16.3868,133.25,133.13,0.34]
[1718999531557,16.3868,133.25,133.16,6.0075]
[1718999531762,6.0416,133.24,133.1,16.1549]
[1718999532084,6.0416,133.24,133.13,6.0088]
[1718999532276,45.17,133.23,133.13,15.0226]
[1718999532476,45.17,133.23,133.15,6.0081]
[1718999532681,63.36617902,133.23,133.15,6.0081]
[1718999532873,20.0,133.22,133.14,6.0085]
[1718999533260,0.17,133.21,133.14,6.0085]
[1718999533568,20.0,133.22,133.1,46.2063]
[1718999533879,20.0,133.23,133.15,6.0081]
[1718999534188,20.0,133.23,133.14,6.0085]
[1718999534772,20.0,133.23,133.11,35.194]
[1718999535069,0.17,133.22,133.15,6.0081]
[1718999535792,0.17,133.22,133.12,15.1931]
[1718999535793,20.0,133.23,133.13,15.0219]
[1718999535974,20.0,133.23,133.16,6.0074]
[1718999536377,20.0,133.23,133.14,0.17]
[1718999536678,20.0,133.23,133.17,6.0073]
[1718999536878,8.53925865,133.24,133.18,6.0067]
[1718999537085,6.0416,133.24,133.18,6.0066]
[1718999538276,6.0416,133.24,133.17,6.0072]
[1718999538676,6.0416,133.24,133.15,6.0081]
[1718999538877,0.17,133.23,133.16,6.0076]
[1718999539091,0.17,133.23,133.15,6.0081]
[1718999539303,20.17,133.23,133.15,6.0081]
[1718999540301,20.17,133.23,133.16,6.0077]
[1718999540476,20.0,133.23,133.16,6.0077]
[1718999540799,20.0,133.23,133.17,6.0071]
[1718999541573,20.0,133.23,133.18,6.0068]